fUST/lending_fUST_20250115
["ID","MTS","AMOUNT","RATE_DAILY","PERIOD"]
[349042439,1736949034076,-500.0,0.00021094,3]
[349042441,1736949034086,-500.0,0.00021094,3]
[349042443,1736949034096,-500.0,0.00021094,3]
[349042445,1736949034106,-566.82,0.00021094,3]
[349042447,1736949034116,-713.64,0.00021094,3]
[349042449,1736949034126,-500.0,0.00021094,3]
[349042451,1736949034136,-500.0,0.00021094,3]
[349042453,1736949034146,-500.0,0.00021231,3]
[349042455,1736949034156,-500.0,0.00021231,3]
[349042457,1736949034166,-500.0,0.00021231,3]
[349042459,1736949034175,-566.82,0.00021231,3]
[349042461,1736949034186,-713.64,0.00021231,3]
[349042463,1736949034197,-500.0,0.00021231,3]
[349042465,1736949034210,-500.0,0.00021231,3]
[349042468,1736949034220,-500.0,0.00021368,3]
[349042470,1736949034230,-510.36,0.00021368,3]
[349042472,1736949034241,-500.0,0.00021368,3]
[349042474,1736949034251,-566.82,0.00021368,3]
[349042476,1736949034264,-713.64,0.00021368,3]
[349042478,1736949034274,-500.0,0.00021368,3]
[349042480,1736949034286,-353.56,0.00021505,3]
[349042482,1736949034296,-167.9,0.00021505,3]
[349042484,1736949034306,-566.82,0.00021505,3]
[349042486,1736949034316,-713.64,0.00021505,3]
[349042488,1736949034326,-208.81,0.00021505,3]
[349042490,1736949034336,-1131.27072204,0.00021629,2]
[349042492,1736949034346,-566.82,0.00021642,3]
[349042494,1736949034356,-713.64,0.00021642,3]
[349042496,1736949034366,-566.82,0.00021779,3]
[349042498,1736949034376,-713.64,0.00021779,3]
[349042500,1736949034386,-566.82,0.00021916,3]
[349042502,1736949034396,-713.64,0.00021916,3]
[349042503,1736949034407,-566.82,0.00022053,3]
[349042505,1736949034417,-713.64,0.00022053,3]
[349042507,1736949034426,-1231.23,0.000221,2]
[349042509,1736949034436,-566.82,0.0002219,3]
[349042511,1736949034446,-713.64,0.0002219,3]
[349042513,1736949034456,-566.82,0.00022327,3]
[349042515,1736949034466,-713.64,0.00022327,3]
[349042517,1736949034476,-566.82,0.00022464,3]
[349042519,1736949034485,-713.64,0.00022464,3]
[349042521,1736949034494,-249.63599304,0.00022589,2]
[349042523,1736949034504,-566.82,0.00022601,3]
[349042525,1736949034516,-713.64,0.00022601,3]
[349042527,1736949034525,-566.82,0.00022738,3]
[349042529,1736949034535,-713.64,0.00022738,3]
[349042531,1736949034545,-566.82,0.00022875,3]
[349042533,1736949034555,-713.64,0.00022875,3]
[349042535,1736949034565,-7438.69753278,0.00023,2]
[349042537,1736949034574,-7438.69753278,0.00023,3]
[349042539,1736949034584,-566.82,0.00023012,3]
[349042541,1736949034595,-713.64,0.00023012,3]
[349042542,1736949034604,-566.91,0.00023149,3]
[349042543,1736949034614,-713.85,0.00023149,3]
[349042544,1736949034623,-10998.73602549,0.00023386,3]
[349042545,1736949034633,-1310.61416468,0.00023627,2]
[349042546,1736949034643,-1310.61416468,0.00023627,2]
[349042547,1736949034731,-1310.61416468,0.00023627,2]
[349042548,1736949034742,-1310.61416468,0.00023627,2]
[349042549,1736949034751,-1310.61416468,0.00023627,2]
[349042551,1736949034764,-1310.61416468,0.00023627,2]
[349042553,1736949034774,-1310.61416468,0.00023627,2]
[349042555,1736949034784,-1310.61416468,0.00023627,2]
[349042557,1736949034793,-1310.61416468,0.00023627,2]
[349042559,1736949034802,-1310.61416468,0.00023627,2]
[349042561,1736949034812,-1310.61416468,0.00023627,2]
[349042563,1736949034822,-1310.61416468,0.00023627,2]
[349042565,1736949034832,-1310.61416468,0.00023627,2]
[349042567,1736949034841,-1310.61416468,0.00023627,2]
[349042569,1736949034851,-1310.61416468,0.00023627,2]
[349042571,1736949034861,-1310.61416468,0.00023627,2]
[349042573,1736949034871,-1310.61416468,0.00023627,2]
[349042575,1736949034880,-1310.61416468,0.00023627,2]
[349042577,1736949034891,-1310.61416468,0.00023627,2]
[349042579,1736949034901,-1310.61,0.00023627,2]
[349042581,1736949034911,-1965.92124701,0.00023627,2]
[349042583,1736949034922,-1965.92124701,0.00023627,2]
[349042585,1736949034932,-1965.92124701,0.00023627,2]
[349042587,1736949034942,-1965.92124701,0.00023627,2]
[349042589,1736949034951,-1965.92124701,0.00023627,2]
[349042591,1736949034961,-1965.92124701,0.00023627,2]
[349042593,1736949034970,-1965.92124701,0.00023627,2]
[349042595,1736949034980,-1965.92124701,0.00023627,2]
[349042597,1736949034989,-1965.92124701,0.00023627,2]
[349042599,1736949034999,-1965.92124701,0.00023627,2]
[349042601,1736949035010,-1965.92124701,0.00023627,2]
[349042603,1736949035020,-1965.92124701,0.00023627,2]
[349042605,1736949035029,-1965.92124701,0.00023627,2]
[349042607,1736949035039,-1965.92124701,0.00023627,2]
[349042609,1736949035048,-1965.92124701,0.00023627,2]
[349042611,1736949035058,-1965.92124701,0.00023627,2]
[349042613,1736949035067,-1965.92124701,0.00023627,2]
[349042615,1736949035076,-1965.92124701,0.00023627,2]
[349042617,1736949035086,-1965.92124701,0.00023627,2]
[349042619,1736949035095,-1965.92,0.00023627,2]
[349042621,1736949035104,-500.0,0.00023699,3]
[349042623,1736949035114,-500.0,0.00023699,3]
[349042625,1736949035123,-500.0,0.00023699,3]
[349042627,1736949035132,-500.0,0.00023699,3]
[349042629,1736949035141,-500.0,0.00023699,3]
[349042631,1736949035151,-151.0,0.00023727,7]
[349042633,1736949035160,-151.0,0.00023727,7]
[349042635,1736949035169,-151.0,0.00023727,7]
[349042637,1736949035179,-151.0,0.00023727,7]
[349042639,1736949035188,-151.0,0.00023727,7]
[349042641,1736949035198,-151.0,0.00023727,7]
[349042643,1736949035207,-151.0,0.00023727,7]
[349042645,1736949035217,-151.0,0.00023727,7]
[349042647,1736949035230,-151.0,0.00023727,7]
[349042649,1736949035239,-151.0,0.00023727,7]
[349042651,1736949035248,-151.0,0.00023727,7]
[349042653,1736949035260,-173.798688,0.00023727,7]
[349042655,1736949035269,-151.0,0.00023727,7]
[349042657,1736949035279,-212.974025,0.00023727,7]
[349042659,1736949035288,-151.0,0.00023727,7]
[349042661,1736949035299,-151.0,0.00023727,7]
[349042664,1736949035309,-247.81097,0.00023727,7]
[349042666,1736949035318,-65956.29760039,0.00023727,5]
[349042668,1736949035328,-16874.41809975,0.00023727,5]
[349042670,1736949035338,-266912.59178431,0.00023727,61]
[349042672,1736949035352,-1007711.64391777,0.00023727,61]
[349042674,1736949035361,-3048.87957402,0.00023727,2]
[349042676,1736949035371,-158693.62034993,0.00023727,61]
[349042947,1736949037982,-500.0,0.00019997,3]
[349042950,1736949037992,-500.0,0.00019998,3]
[349042952,1736949038002,-500.0,0.00019998,3]
[349042954,1736949038015,-500.0,0.00020135,3]
[349042956,1736949038025,-500.0,0.00020272,3]
[349042958,1736949038034,-500.0,0.00020409,3]
[349042960,1736949038044,-500.0,0.00020546,3]
[349042962,1736949038054,-500.0,0.00020683,3]
[349042964,1736949038063,-500.0,0.00020683,3]
[349042966,1736949038072,-500.0,0.0002082,3]
[349042968,1736949038081,-500.0,0.00020957,3]
[349042970,1736949038092,-500.0,0.00021094,3]
[349042972,1736949038102,-500.0,0.00021231,3]
[349042974,1736949038111,-500.0,0.00021368,3]
[349042976,1736949038121,-500.0,0.00021505,3]
[349042978,1736949038131,-500.0,0.00021642,3]
[349042981,1736949038140,-500.0,0.00021779,3]
[349042984,1736949038149,-500.0,0.00022999,2]
[349042988,1736949038159,-544.8696202,0.00022999,2]
[349042991,1736949038169,-151.0,0.00023727,7]
[349042994,1736949038179,-199.551394,0.00023727,7]
[349042997,1736949038188,-151.0,0.00023727,7]
[349043000,1736949038199,-151.0,0.00023727,7]
[349043003,1736949038208,-3389.80497274,0.00023727,61]
[349043006,1736949038224,-3313.87044626,0.00023727,61]
[349043316,1736949041422,-26676.573127,0.00023727,61]
[349043328,1736949041526,-1652.12522546,0.00023727,61]
[349043330,1736949041539,-8568.8926521,0.00023727,61]
[349043333,1736949041560,-1354.55067164,0.00023727,61]
[349043341,1736949041623,-13270.187525,0.00023727,61]
[349043343,1736949041634,-735.78660761,0.00023727,61]
[349043345,1736949041646,-1925.84206488,0.00023727,61]
[349043348,1736949041657,-1055.32632821,0.00023727,61]
[349043573,1736949043562,-501.25578365,0.00019965,3]
[349043575,1736949043571,-500.0,0.00019998,3]
[349043577,1736949043581,-500.0,0.0002082,3]
[349043579,1736949043590,-500.0,0.00020957,3]
[349043581,1736949043600,-500.0,0.00021094,3]
[349043582,1736949043610,-500.0,0.00021231,3]
[349043584,1736949043619,-13452.31527035,0.00023727,61]
[349043587,1736949043631,-831032.31362623,0.00023727,61]
[349043589,1736949043642,-37718.03696,0.00023727,61]
[349043591,1736949043654,-177983.60317018,0.00023727,61]
[349043593,1736949043665,-1260.62651095,0.00023727,61]
[349043595,1736949043677,-439863.38330736,0.00023727,61]
[349043597,1736949043686,-465673.2514577,0.00023727,61]
[349043599,1736949043696,-57849.42138087,0.00023727,61]
[349043601,1736949043709,-18009.20952992,0.00023727,61]
[349044079,1736949048494,-596.3473146,0.00019965,3]
[349044081,1736949048504,-500.0,0.00019998,3]
[349044083,1736949048514,-500.0,0.00020408,3]
[349044085,1736949048528,-16128.13673507,0.00023727,61]
[349044094,1736949048607,-2247.901606,0.00023727,61]
[349044096,1736949048619,-1762.5000065,0.00023727,61]
[349044099,1736949048631,-23833.70301369,0.00023727,61]
[349045765,1736949888603,169.695491,0.00013973,2]
[349045766,1736950150120,1000.0,0.00018,30]
[349045840,1736950232623,-306.50781755,0.00018259,2]
[349045842,1736950232633,-5043.0,0.00018443,12]
[349045844,1736950232643,-208.593404,0.00018444,2]
[349045846,1736950232653,-2537.8046871,0.00018717,2]
[349045848,1736950232662,-462.1105,0.00018892,2]
[349045850,1736950232674,-1047.1064122,0.000189,2]
[349045852,1736950232685,-250.0,0.00018904,2]
[349045854,1736950232698,-300.0,0.00019564,2]
[349045856,1736950232707,-3951.0,0.00019564,2]
[349045858,1736950232718,-1141.77384633,0.00019565,2]
[349045859,1736950232728,-500.0,0.00019665,2]
[349045862,1736950232738,-297.5287003,0.00019665,2]
[349045863,1736950232749,-175.6644546,0.00019843,2]
[349045866,1736950232759,-271.44039999,0.00019864,2]
[349045867,1736950232770,-259.43210317,0.00019864,2]
[349045869,1736950232781,-500.0,0.00019895,3]
[349045871,1736950232791,-500.0,0.00019895,3]
[349045873,1736950232801,-500.0,0.00019895,3]
[349045875,1736950232811,-500.0,0.00019895,3]
[349045877,1736950232822,-500.0,0.00019895,3]
[349045879,1736950232832,-206.78032551,0.00019895,3]
[349045881,1736950232842,-703.11348157,0.00019895,3]
[349045889,1736950232907,-8.34651843,0.00019895,3]
[349045891,1736950232917,-500.0,0.00019895,3]
[349045893,1736950232927,-500.0,0.00019895,3]
[349045895,1736950232937,-32118.51689126,0.00019896,2]
[349045898,1736950232950,-3817.618944,0.000199,2]
[349045901,1736950232960,-152.0,0.00019935,2]
[349045904,1736950232972,-151.0,0.00019951,2]
[349045907,1736950232982,-187.45,0.00019954,2]
[349045910,1736950232992,-500.0,0.00019961,2]
[349045913,1736950233002,-500.0,0.00019961,2]
[349045916,1736950233012,-500.0,0.00019961,2]
[349045919,1736950233023,-500.0,0.00019961,2]
[349045922,1736950233034,-500.0,0.00019961,2]
[349045925,1736950233045,-500.0,0.00019961,2]
[349045928,1736950233056,-500.0,0.00019961,2]
[349045931,1736950233068,-500.0,0.00019961,2]
[349045934,1736950233079,-500.0,0.00019961,2]
[349045936,1736950233091,-321.90149206,0.00019963,3]
[349045938,1736950233101,-500.0,0.00019963,3]
[349045940,1736950233112,-500.0,0.00019963,2]
[349045941,1736950233123,-238.8604221,0.00019963,2]
[349045943,1736950233133,-422.0192179,0.00019963,2]
[349045945,1736950233143,-500.0,0.00019963,2]
[349045947,1736950233154,-500.0,0.00019963,2]
[349045949,1736950233164,-500.0,0.00019963,3]
[349045951,1736950233174,-500.0,0.00019963,3]
[349045953,1736950233185,-500.0,0.00019963,3]
[349045954,1736950233203,-500.0,0.00019963,3]
[349045955,1736950233214,-500.0,0.00019963,3]
[349045956,1736950233225,-500.0,0.00019963,3]
[349045957,1736950233237,-500.0,0.00019963,3]
[349045958,1736950233247,-2103.49,0.00019963,3]
[349045959,1736950233257,-500.0,0.00019963,3]
[349045960,1736950233267,-500.0,0.00019963,3]
[349045961,1736950233278,-500.0,0.00019963,3]
[349045962,1736950233288,-500.0,0.00019963,3]
[349045963,1736950233298,-500.0,0.00019963,3]
[349045964,1736950233307,-500.0,0.00019963,3]
[349045965,1736950233316,-860.38,0.00019963,3]
[349045966,1736950233326,-500.0,0.00019963,3]
[349045967,1736950233335,-564.4875017,0.00019963,3]
[349045968,1736950233344,-500.0,0.00019963,3]
[349045969,1736950233427,-500.0,0.00019963,3]
[349045970,1736950233441,-500.0,0.00019963,3]
[349045971,1736950233455,-500.0,0.00019963,3]
[349045972,1736950233465,-2397.57,0.00019963,3]
[349045973,1736950233477,-500.0,0.00019963,3]
[349045974,1736950233488,-3245.69,0.00019963,3]
[349045975,1736950233500,-500.0,0.00019963,3]
[349045976,1736950233511,-3245.69,0.00019963,3]
[349045977,1736950233523,-500.0,0.00019963,3]
[349045978,1736950233533,-500.0,0.00019963,3]
[349045979,1736950233543,-500.0,0.00019963,3]
[349045980,1736950233554,-500.0,0.00019963,3]
[349045981,1736950233564,-2462.2,0.00019963,3]
[349045982,1736950233573,-500.0,0.00019963,3]
[349045983,1736950233583,-500.0,0.00019963,3]
[349045984,1736950233593,-14997.96,0.00019963,3]
[349045985,1736950233604,-500.0,0.00019963,3]
[349045986,1736950233615,-500.0,0.00019963,3]
[349045987,1736950233625,-500.0,0.00019963,3]
[349045988,1736950233636,-215.25231667,0.00019964,2]
[349045989,1736950233648,-500.0,0.00019964,3]
[349045990,1736950233659,-500.0,0.00019964,3]
[349045991,1736950233675,-500.0,0.00019964,3]
[349045992,1736950233686,-500.0,0.00019964,3]
[349045993,1736950233700,-500.0,0.00019964,3]
[349045994,1736950233711,-500.0,0.00019964,3]
[349045995,1736950233722,-500.0,0.00019964,3]
[349045996,1736950233732,-501.25578365,0.00019964,3]
[349045997,1736950233744,-500.0,0.00019964,3]
[349045998,1736950233754,-500.0,0.00019964,3]
[349045999,1736950233764,-500.0,0.00019964,3]
[349046000,1736950233775,-500.0,0.00019964,3]
[349046001,1736950233785,-500.0,0.00019964,3]
[349046002,1736950233795,-500.0,0.00019964,3]
[349046003,1736950233805,-500.0,0.00019964,3]
[349046004,1736950233816,-500.0,0.00019964,3]
[349046005,1736950233827,-505.00681946,0.00019964,3]
[349046006,1736950233837,-332.38093477,0.00019964,3]
[349046007,1736950233847,-500.0,0.00019964,3]
[349046008,1736950233857,-290.79293084,0.00019964,3]
[349046009,1736950233868,-500.0,0.00019964,3]
[349046010,1736950233878,-500.0,0.00019964,3]
[349046011,1736950233889,-500.0,0.00019964,3]
[349046012,1736950233899,-500.0,0.00019964,3]
[349046013,1736950233908,-500.0,0.00019964,3]
[349046014,1736950233918,-432.93638237,0.00019964,2]
[349046015,1736950233928,-500.0,0.00019964,3]
[349046016,1736950233939,-500.0,0.00019964,3]
[349046017,1736950233955,-500.0,0.00019964,3]
[349046018,1736950233966,-500.0,0.00019964,3]
[349046019,1736950233976,-500.0,0.00019964,3]
[349046020,1736950233987,-464.02836908,0.00019964,3]
[349046021,1736950233997,-500.0,0.00019964,3]
[349046022,1736950234008,-500.0,0.00019964,3]
[349046023,1736950234019,-500.0,0.00019964,3]
[349046024,1736950234030,-500.0,0.00019964,3]
[349046025,1736950234041,-500.0,0.00019964,3]
[349046026,1736950234052,-500.0,0.00019964,3]
[349046027,1736950234062,-500.0,0.00019964,3]
[349046028,1736950234073,-500.0,0.00019964,3]
[349046029,1736950234083,-500.0,0.00019964,3]
[349046030,1736950234094,-500.0,0.00019964,3]
[349046031,1736950234104,-500.92904448,0.00019964,3]
[349046032,1736950234115,-500.0,0.00019964,3]
[349046033,1736950234126,-436.96687388,0.00019964,3]
[349046090,1736950238322,-500.0,0.00019961,2]
[349046092,1736950238332,-500.0,0.00019961,2]
[349046094,1736950238342,-210.81730611,0.00019961,2]
[349046096,1736950238351,-500.0,0.00019961,2]
[349046098,1736950238361,-500.0,0.00019961,2]
[349046100,1736950238371,-500.0,0.00019961,2]
[349046102,1736950238380,-500.0,0.00019961,2]
[349046104,1736950238390,-500.0,0.00019961,2]
[349046107,1736950238400,-470.1986129,0.00019961,2]
[349046109,1736950238409,-509.36238768,0.00019961,2]
[349046111,1736950238419,-500.0,0.00019961,2]
[349046113,1736950238428,-191.47378114,0.00019961,2]
[349046116,1736950238438,-500.0,0.00019961,2]
[349046119,1736950238447,-500.0,0.00019961,2]
[349046122,1736950238459,-500.0,0.00019961,2]
[349046125,1736950238469,-500.0,0.00019961,2]
[349046127,1736950238478,-500.0,0.00019961,2]
[349046130,1736950238488,-500.0,0.00019961,2]
[349046132,1736950238497,-500.0,0.00019961,2]
[349046134,1736950238507,-500.0,0.00019961,2]
[349046136,1736950238516,-500.0,0.00019961,2]
[349046139,1736950238526,-500.0,0.00019961,2]
[349046141,1736950238537,-500.0,0.00019961,2]
[349046143,1736950238547,-500.0,0.00019961,2]
[349046145,1736950238556,-500.0,0.00019961,2]
[349046147,1736950238565,-500.0,0.00019961,2]
[349046149,1736950238575,-500.0,0.00019961,2]
[349046151,1736950238584,-500.0,0.00019961,2]
[349046153,1736950238593,-500.0,0.00019961,2]
[349046155,1736950238603,-500.0,0.00019961,2]
[349046157,1736950238617,-500.0,0.00019961,2]
[349046160,1736950238632,-500.0,0.00019961,2]
[349046162,1736950238647,-500.0,0.00019961,2]
[349046165,1736950238658,-500.0,0.00019961,2]
[349046167,1736950238674,-500.0,0.00019961,2]
[349046169,1736950238687,-500.0,0.00019961,2]
[349046172,1736950238703,-500.0,0.00019961,2]
[349046174,1736950238717,-500.0,0.00019961,2]
[349046177,1736950238731,-500.0,0.00019961,2]
[349046179,1736950238747,-500.0,0.00019961,2]
[349046182,1736950238761,-500.0,0.00019961,2]
[349046184,1736950238774,-500.0,0.00019961,2]
[349046187,1736950238786,-500.0,0.00019961,2]
[349046189,1736950238802,-500.0,0.00019961,2]
[349046191,1736950238815,-500.0,0.00019961,2]
[349046194,1736950238828,-500.0,0.00019961,2]
[349046196,1736950238838,-500.0,0.00019961,2]
[349046198,1736950238851,-500.0,0.00019961,2]
[349046201,1736950238863,-500.0,0.00019961,2]
[349046203,1736950238876,-500.0,0.00019961,2]
[349046206,1736950238889,-500.0,0.00019961,2]
[349046208,1736950238903,-500.0,0.00019961,2]
[349046211,1736950238916,-500.0,0.00019961,2]
[349046213,1736950238931,-273.97378048,0.00019961,2]
[349046215,1736950238944,-500.0,0.00019961,2]
[349046218,1736950238957,-500.0,0.00019961,2]
[349046220,1736950238969,-500.0,0.00019961,2]
[349046222,1736950238981,-500.0,0.00019961,2]
[349046225,1736950238996,-500.0,0.00019961,2]
[349046227,1736950239009,-500.0,0.00019961,2]
[349046229,1736950239020,-500.0,0.00019961,2]
[349046232,1736950239032,-500.0,0.00019961,2]
[349046234,1736950239043,-500.0,0.00019961,2]
[349046236,1736950239057,-500.0,0.00019961,2]
[349046238,1736950239068,-500.0,0.00019961,2]
[349046241,1736950239078,-500.0,0.00019961,2]
[349046243,1736950239090,-500.0,0.00019961,2]
[349046245,1736950239102,-500.0,0.00019961,2]
[349046247,1736950239114,-500.0,0.00019961,2]
[349046250,1736950239128,-500.0,0.00019961,2]
[349046252,1736950239140,-500.0,0.00019961,2]
[349046254,1736950239152,-500.0,0.00019961,2]
[349046256,1736950239165,-500.0,0.00019961,2]
[349046258,1736950239176,-63.03312612,0.00019964,3]
[349046260,1736950239189,-500.0,0.00019964,3]
[349046263,1736950239203,-500.0,0.00019964,3]
[349046265,1736950239217,-500.0,0.00019964,3]
[349046267,1736950239229,-500.0,0.00019964,3]
[349046269,1736950239242,-500.0,0.00019964,3]
[349046272,1736950239253,-500.0,0.00019964,3]
[349046274,1736950239265,-500.0,0.00019964,3]
[349046276,1736950239277,-500.0,0.00019964,3]
[349046278,1736950239289,-500.0,0.00019964,3]
[349046280,1736950239300,-501.53545334,0.00019964,3]
[349046283,1736950239312,-502.75012819,0.00019964,3]
[349046285,1736950239324,-500.0,0.00019964,3]
[349046287,1736950239336,-500.0,0.00019964,3]
[349046289,1736950239348,-500.0,0.00019964,3]
[349046291,1736950239360,-500.0,0.00019964,3]
[349046294,1736950239371,-511.45311852,0.00019964,3]
[349046296,1736950239383,-500.0,0.00019964,3]
[349046298,1736950239395,-500.0,0.00019964,3]
[349046300,1736950239407,-500.0,0.00019964,3]
[349046303,1736950239419,-500.0,0.00019964,3]
[349046305,1736950239431,-502.51543947,0.00019964,3]
[349046307,1736950239443,-500.0,0.00019964,3]
[349046309,1736950239460,-500.0,0.00019964,3]
[349046311,1736950239472,-500.0,0.00019964,3]
[349046314,1736950239485,-500.70696807,0.00019964,3]
[349046316,1736950239498,-500.60683966,0.00019964,3]
[349046318,1736950239511,-501.52322336,0.00019964,3]
[349046320,1736950239524,-730.35,0.00019964,3]
[349046322,1736950239534,-501.32871843,0.00019964,3]
[349046324,1736950239544,-500.57339852,0.00019964,3]
[349046326,1736950239554,-500.0,0.00019964,3]
[349046328,1736950239563,-501.27204527,0.00019964,3]
[349046347,1736950239712,-502.60684649,0.00019964,3]
[349046350,1736950239739,-500.0,0.00019964,3]
[349046353,1736950239751,-205.41566002,0.00019964,3]
[349046355,1736950239762,-181.79004023,0.00019964,3]
[349046357,1736950239771,-500.0,0.00019964,3]
[349046359,1736950239781,-500.0,0.00019964,3]
[349046361,1736950239791,-502.54433948,0.00019964,3]
[349046363,1736950239801,-500.0,0.00019964,3]
[349046365,1736950239811,-270.96000238,0.00019964,3]
[349046367,1736950239820,-500.0,0.00019964,3]
[349046369,1736950239829,-500.0,0.00019964,3]
[349046370,1736950239839,-675.27,0.00019964,3]
[349046371,1736950239849,-501.10151777,0.00019964,3]
[349046372,1736950239858,-500.0,0.00019964,3]
[349046373,1736950239868,-500.0,0.00019964,3]
[349046374,1736950239877,-500.0,0.00019964,3]
[349046375,1736950239887,-676.97,0.00019964,3]
[349046376,1736950239897,-500.0,0.00019964,3]
[349046377,1736950239907,-500.0,0.00019964,3]
[349046378,1736950239916,-505.54049205,0.00019964,3]
[349046379,1736950239928,-500.0,0.00019964,3]
[349046380,1736950239937,-500.0,0.00019964,3]
[349046381,1736950239947,-500.0,0.00019964,3]
[349046382,1736950239960,-500.0,0.00019964,3]
[349046383,1736950239971,-500.0,0.00019964,3]
[349046384,1736950239981,-500.0,0.00019964,3]
[349046385,1736950239990,-500.0,0.00019964,3]
[349046387,1736950240000,-500.0,0.00019964,3]
[349046389,1736950240009,-366.0535585,0.00019964,3]
[349046391,1736950240018,-500.0,0.00019964,3]
[349046393,1736950240027,-500.0,0.00019964,3]
[349046395,1736950240036,-503.02684021,0.00019964,3]
[349046397,1736950240046,-500.0,0.00019964,3]
[349046399,1736950240055,-503.32196443,0.00019964,3]
[349046401,1736950240065,-500.0,0.00019964,3]
[349046403,1736950240074,-500.0,0.00019964,3]
[349046405,1736950240083,-503.12644779,0.00019964,3]
[349046407,1736950240092,-502.64131757,0.00019964,3]
[349046408,1736950240101,-500.0,0.00019964,3]
[349046411,1736950240110,-500.0,0.00019964,3]
[349046412,1736950240120,-500.0,0.00019964,3]
[349046414,1736950240130,-500.0,0.00019964,3]
[349046416,1736950240139,-500.0,0.00019964,3]
[349046418,1736950240148,-500.0,0.00019964,3]
[349046421,1736950240159,-500.0,0.00019964,3]
[349046423,1736950240170,-500.0,0.00019964,3]
[349046425,1736950240180,-770.73,0.00019964,3]
[349046427,1736950240190,-500.0,0.00019964,3]
[349046429,1736950240200,-355.40546766,0.00019964,3]
[349046431,1736950240210,-500.0,0.00019964,3]
[349046432,1736950240220,-500.0,0.00019964,3]
[349046434,1736950240229,-500.0,0.00019964,3]
[349046436,1736950240239,-500.0,0.00019964,3]
[349046438,1736950240248,-500.0,0.00019964,3]
[349046441,1736950240258,-500.0,0.00019964,3]
[349046442,1736950240267,-500.0,0.00019964,3]
[349046445,1736950240277,-500.0,0.00019964,3]
[349046447,1736950240286,-500.0,0.00019964,3]
[349046449,1736950240296,-500.0,0.00019964,3]
[349046451,1736950240307,-501.84098879,0.00019964,3]
[349046453,1736950240319,-500.0,0.00019964,3]
[349046454,1736950240329,-501.55579109,0.00019964,3]
[349046456,1736950240342,-500.0,0.00019964,3]
[349046458,1736950240354,-502.0566773,0.00019964,3]
[349046460,1736950240364,-500.0,0.00019964,3]
[349046462,1736950240374,-500.0,0.00019964,3]
[349046464,1736950240386,-500.0,0.00019964,3]
[349046466,1736950240399,-500.0,0.00019964,3]
[349046468,1736950240409,-500.0,0.00019964,3]
[349046470,1736950240421,-500.0,0.00019964,3]
[349046473,1736950240434,-65.33797829,0.00019964,3]
[349046475,1736950240454,-434.66202171,0.00019964,3]
[349046477,1736950240464,-500.0,0.00019964,3]
[349046479,1736950240476,-500.04199101,0.00019964,3]
[349046481,1736950240487,-510.21337728,0.00019964,3]
[349046483,1736950240497,-34.01861,0.00019964,3]
[349046820,1736950243320,-465.98139,0.00019964,3]
[349046823,1736950243330,-324.46861,0.00019964,3]
[349047011,1736950246563,-3886.81172553,0.00019764,2]
[349047038,1736950808267,160.026077,0.00013973,2]
[349047039,1736950862287,1000.0,0.00015,60]
[349047048,1736951247907,10000.0,0.00025,120]
[349047049,1736951265846,7502.17,0.00025,120]
[349047052,1736951285299,5626.63,0.00025,120]
[349047061,1736951370097,-4496.92345712,0.000159,2]